[Event "Summer Prague Open-A 2024"]
[Site "Prague"]
[Date "2024.08.06"]
[Round "6.15"]
[White "Sramek, Vojtech"]
[Black "Hozda, Max"]
[Result "1-0"]
[Annotator "RC"]
[ECO "B14"]
[WhiteElo "2237"]
[BlackElo "2046"]
[PlyCount "213"]
[EventDate "2024.08.02"]
[EventType "swiss"]
[EventCountry "CZE"]
[SourceTitle "playchess.com"]
[Source "ChessBase"]
[SourceQuality "1"]
[TimeControl "40/5400+30:1800+30"]

1. e4 {[%emt 0:00:03]} c6 {[%emt 0:06:11]} 2. d4 {[%emt 0:00:13]} d5 {[%emt 0:00:10]} 3. exd5 {[%emt 0:00:12]} cxd5 {[%emt 0:00:20]} 4. c4 {[%emt 0:00:05]} Nf6 {[%emt 0:00:15]} 5. Nc3 {[%emt 0:00:05]} e6 {[%emt 0:00:42]} 6. Nf3 {[%emt 0:00:06]} Bb4 {[%emt 0:00:19]} 7. cxd5 {[%emt 0:00:06]} Nxd5 {[%emt 0:01:30]} 8. Bd2 {[%emt 0:00:06]} O-O {[%emt 0:01:30]} 9. Bd3 {[%emt 0:00:10]} Nc6 {[%emt 0:04:41]} 10. O-O {[%emt 0:00:12]} Be7 {[%emt 0:01:08]} 11. a3 {[%emt 0:27:05]} Bf6 {[%emt 0:01:32]} 12. Nxd5 {[%emt 0:01:06]} exd5 {[%emt 0:09:47]} 13. h3 {[%emt 0:05:36]} Qb6 {[%emt 0:08:43]} 14. Bc3 {[%emt 0:02:26]} g6 {[%emt 0:01:25]} 15. Bc2 {[%emt 0:03:44]} Be6 {[%emt 0:02:59]} 16. Qd2 {[%emt 0:01:18]} Rac8 {[%emt 0:04:22]} 17. Rfe1 {[%emt 0:02:10]} Qc7 {[%emt 0:07:41]} 18. Re2 {[%emt 0:09:59]} Rfe8 {[%emt 0:04:57]} 19. Rae1 {[%emt 0:03:59]} b5 {[%emt 0:04:41]} 20. Bb3 {[%emt 0:02:51]} Qd6 {[%emt 0:10:29]} 21. Ne5 {[%emt 0:02:23]} Red8 {[%emt 0:03:51]} 22. Qh6 {[%emt 0:08:43]} Qf8 {[%emt 0:06:12]} 23. Qxf8+ {[%emt 0:07:21]} Kxf8 {[%emt 0:00:20]} 24. Nxc6 {[%emt 0:03:13]} Rxc6 {[%emt 0:00:06]} 25. Bb4+ {[%emt 0:01:43]} Be7 {[%emt 0:04:17]} 26. Ba5 {[%emt 0:00:24]} Rd7 {[%emt 0:01:26]} 27. Rc2 {[%emt 0:01:27]} Rxc2 {[%emt 0:00:24]} 28. Bxc2 {[%emt 0:00:04]} Kg7 {[%emt 0:01:25]} 29. Bd3 {[%emt 0:02:37]} Rb7 {[%emt 0:02:35]} 30. Bb4 {[%emt 0:03:54]} Bxb4 {[%emt 0:00:15]} 31. axb4 {[%emt 0:00:03]} a6 {[%emt 0:01:02]} 32. Rc1 {[%emt 0:00:14]} Rb6 {[%emt 0:00:44]} 33. Kf1 {[%emt 0:01:47]} h5 {[%emt 0:01:00]} 34. h4 {[%emt 0:01:00]} f5 {[%emt 0:02:48]} 35. Ke2 {[%emt 0:00:51]} Kf6 {[%emt 0:00:09]} 36. Kf3 {[%emt 0:01:38]} Rd6 {[%emt 0:00:04]} 37. g3 {[%emt 0:02:31]} Bd7 {[%emt 0:00:49]} 38. Rc7 {[%emt 0:00:39]} Be6 {[%emt 0:00:43]} 39. Ke3 {[%emt 0:01:07]} Bd7 {[%emt 0:00:49]} 40. Kd2 {[%emt 0:01:11]} Be6 {[%emt 0:01:08]} 41. Ra7 {[%emt 0:34:12]} Rc6 {[%emt 0:34:07]} 42. Be2 {[%emt 0:01:03]} Rd6 {[%emt 0:01:15]} 43. Ra8 {[%emt 0:01:08]} Rc6 {[%emt 0:01:38]} 44. Rh8 {[%emt 0:00:00]} Bf7 {[%emt 0:00:00]} 45. Rd8 {[%emt 0:00:00]} Ke7 {[%emt 0:00:00]} 46. Ra8 {[%emt 0:00:00]} Kf6 {[%emt 0:00:00]} 47. Bf3 {[%emt 0:00:00]} Rd6 {[%emt 0:00:00]} 48. Rf8 {[%emt 0:00:00]} Ke7 {[%emt 0:00:00]} 49. Rc8 {[%emt 0:00:00]} Kf6 {[%emt 0:00:00]} 50. Bd1 {[%emt 0:00:00]} Be6 {[%emt 0:00:00]} 51. Ra8 {[%emt 0:00:00]} Rc6 {[%emt 0:00:00]} 52. Bb3 {[%emt 0:00:00]} Rd6 {[%emt 0:00:00]} 53. Re8 {[%emt 0:00:00]} Kf7 {[%emt 0:00:00]} 54. Ra8 {[%emt 0:00:00]} Kf6 {[%emt 0:00:00]} 55. Ra7 {[%emt 0:00:00]} Rc6 {[%emt 0:00:00]} 56. Rb7 {[%emt 0:00:00]} Rd6 {[%emt 0:00:00]} 57. Rc7 {[%emt 0:00:00]} Bf7 {[%emt 0:00:00]} 58. Ke3 {[%emt 0:00:00]} Be6 {[%emt 0:00:00]} 59. Kf4 {[%emt 0:00:00]} Bd7 {[%emt 0:00:00]} 60. Rc5 {[%emt 0:00:00]} Be6 {[%emt 0:00:00]} 61. Rc3 {[%emt 0:00:00]} Bf7 {[%emt 0:00:00]} 62. Re3 {[%emt 0:00:00]} Be6 {[%emt 0:00:00]} 63. f3 {[%emt 0:00:00]} Rd8 {[%emt 0:00:00]} 64. Re1 {[%emt 0:00:00]} Rc8 {[%emt 0:00:00]} 65. Ra1 {[%emt 0:00:00]} Rc6 {[%emt 0:00:00]} 66. Ke3 {[%emt 0:00:00]} Bf7 {[%emt 0:00:00]} 67. Rg1 {[%emt 0:00:00]} Be6 {[%emt 0:00:00]} 68. Kd2 {[%emt 0:00:00]} Rc7 {[%emt 0:00:00]} 69. Re1 {[%emt 0:00:00]} Rc6 {[%emt 0:00:00]} 70. Re5 {[%emt 0:00:00]} Rd6 {[%emt 0:00:00]} 71. Ke3 {[%emt 0:00:00]} Rd8 {[%emt 0:00:00]} 72. Kf4 {[%emt 0:00:00]} Rd6 {[%emt 0:00:00]} 73. Re2 {[%emt 0:00:24]} Rc6 {[%emt 0:02:45]} 74. Rc2 {[%emt 0:00:04]} Rd6 {[%emt 0:01:07]} 75. Rc5 {[%emt 0:00:44]} Bf7 {[%emt 0:00:52]} 76. g4 {[%emt 0:00:59]} hxg4 {[%emt 0:00:06]} 77. fxg4 {[%emt 0:00:10]} fxg4 {[%emt 0:00:07]} 78. Kxg4 {[%emt 0:00:19]} Be6+ {[%emt 0:02:02]} 79. Kf4 {[%emt 0:00:06]} Bf7 {[%emt 0:00:12]} 80. Bd1 {[%emt 0:01:27]} Re6 {[%emt 0:02:23]} 81. Bf3 {[%emt 0:01:02]} Rd6 {[%emt 0:00:38]} 82. Bg4 {[%emt 0:00:26]} Rd8 {[%emt 0:05:36]} 83. Rc6+ {[%emt 0:01:02]} Kg7 {[%emt 0:00:11]} 84. Rxa6 {[%emt 0:04:16]} Re8 {[%emt 0:00:03]} 85. Bf3 {[%emt 0:00:13]} Re1 {[%emt 0:00:36]} 86. Rb6 {[%emt 0:01:00]} Rb1 {[%emt 0:01:16]} 87. Rxb5 {[%emt 0:00:39]} Rxb2 {[%emt 0:00:04]} 88. Rb7 {[%emt 0:00:39]} Kf6 {[%emt 0:00:14]} 89. Rb6+ {[%emt 0:01:13]} Kg7 {[%emt 0:00:11]} 90. Ke5 {[%emt 0:02:34]} Rf2 {[%emt 0:00:13]} 91. Bg4 {[%emt 0:02:53]} Rh2 {[%emt 0:00:27]} 92. Be6 {[%emt 0:00:57]} Rxh4 {[%emt 0:00:04]} 93. Bxf7 {[%emt 0:00:23]} Kxf7 {[%emt 0:00:04]} 94. Rb7+ {[%emt 0:00:08]} Ke8 {[%emt 0:00:27]} 95. Kxd5 {[%emt 0:00:34]} g5 {[%emt 0:00:27]} 96. b5 {[%emt 0:00:28]} g4 {[%emt 0:00:17]} 97. Rg7 {[%emt 0:00:57]} Kd8 {[%emt 0:00:11]} 98. b6 {[%emt 0:00:36]} Kc8 {[%emt 0:00:06]} 99. Kc6 {[%emt 0:00:20]} Rh6+ {[%emt 0:00:12]} 100. Kc5 {[%emt 0:00:08]} Rh5+ {[%emt 0:00:32]} 101. d5 {[%emt 0:00:05]} Rh1 {[%emt 0:00:16]} 102. Rxg4 {[%emt 0:00:19]} Rh6 {[%emt 0:00:28]} 103. Rg8+ {[%emt 0:01:39]} Kb7 {[%emt 0:00:08]} 104. Rg7+ {[%emt 0:00:05]} Kb8 {[%emt 0:00:35]} 105. d6 {[%emt 0:01:15]} Rh1 {[%emt 0:00:10]} 106. d7 {[%emt 0:01:04]} Rc1+ {[%emt 0:00:13]} 107. Kd6 {[%emt 0:00:14]} 1-0

[Event "Summer Prague Open-A 2024"]
[Site "Prague"]
[Date "2024.08.06"]
[Round "6.16"]
[White "Svacina, Tobias"]
[Black "Jun, Rudolf"]
[Result "1/2-1/2"]
[Annotator "NA RC"]
[ECO "A28"]
[WhiteElo "2071"]
[BlackElo "2198"]
[PlyCount "38"]
[EventDate "2024.08.02"]
[EventType "swiss"]
[EventCountry "CZE"]
[SourceTitle "playchess.com"]
[Source "ChessBase"]
[SourceQuality "1"]
[TimeControl "40/5400+30:1800+30"]

1. c4 {[%emt 0:01:03]} Nf6 {[%emt 0:00:38]} 2. Nc3 {[%emt 0:00:37]} e5 {[%emt 0:01:42]} 3. Nf3 {[%emt 0:01:06]} Nc6 {[%emt 0:06:26]} 4. e4 {[%emt 0:00:22]} Bb4 {[%emt 0:02:54]} 5. d3 {[%emt 0:00:23]} a5 {[%emt 0:01:47]} 6. a3 {[%emt 0:01:13]} Be7 {[%emt 0:01:57]} 7. d4 {[%emt 0:02:51]} exd4 {[%emt 0:01:38]} 8. Nxd4 {[%emt 0:01:30]} Nxd4 {[%emt 0:00:38]} 9. Qxd4 {[%emt 0:00:10]} d6 {[%emt 0:00:28]} 10. Be2 {[%emt 0:03:42]} O-O {[%emt 0:00:58]} 11. O-O {[%emt 0:02:31]} Nd7 {[%emt 0:02:23]} 12. Nd5 {[%emt 0:01:17]} Nc5 {[%emt 0:01:01]} 13. Bd1 {[%emt 0:04:19]} Bf6 {[%emt 0:08:16]} 14. Nxf6+ {[%emt 0:02:30]} Qxf6 {[%emt 0:00:07]} 15. Qxf6 {[%emt 0:00:09]} gxf6 {[%emt 0:00:04]} 16. Bc2 {[%emt 0:27:18]} Re8 {[%emt 0:01:04]} 17. Bd2 {[%emt 0:04:18]} Nxe4 {[%emt 0:15:42]} 18. Rfe1 {[%emt 0:04:12]} Bf5 {[%emt 0:00:51]} 19. Bxe4 {[%emt 0:00:45]} Bxe4 {[%emt 0:01:45]} 1/2-1/2

[Event "Summer Prague Open-A 2024"]
[Site "Prague"]
[Date "2024.08.06"]
[Round "6.17"]
[White "Yildirim, Kemal"]
[Black "Golenia, Jan"]
[Result "1/2-1/2"]
[Annotator "NA RC"]
[ECO "C60"]
[WhiteElo "2029"]
[BlackElo "2188"]
[PlyCount "46"]
[EventDate "2024.08.02"]
[EventType "swiss"]
[EventCountry "CZE"]
[SourceTitle "playchess.com"]
[Source "ChessBase"]
[SourceQuality "1"]
[TimeControl "40/5400+30:1800+30"]

1. e4 {[%emt 0:00:03]} e5 {[%emt 0:12:01]} 2. Nf3 {[%emt 0:00:11]} Nc6 {[%emt 0:00:05]} 3. Bb5 {[%emt 0:00:22]} Nge7 {[%emt 0:00:11]} 4. Nc3 {[%emt 0:00:37]} Ng6 {[%emt 0:03:39]} 5. d4 {[%emt 0:00:37]} exd4 {[%emt 0:01:11]} 6. Nxd4 {[%emt 0:00:25]} Bc5 {[%emt 0:00:55]} 7. Nb3 {[%emt 0:09:31]} Bb6 {[%emt 0:10:16]} 8. Nd5 {[%emt 0:11:03]} O-O {[%emt 0:09:59]} 9. O-O {[%emt 0:00:31]} Re8 {[%emt 0:05:09]} 10. Nxb6 {[%emt 0:10:01]} axb6 {[%emt 0:00:04]} 11. f3 {[%emt 0:00:44]} Qh4 {[%emt 0:08:59]} 12. Nd4 {[%emt 0:08:31]} Nxd4 {[%emt 0:09:54]} 13. Qxd4 {[%emt 0:00:09]} Qh5 {[%emt 0:00:09]} 14. a4 {[%emt 0:05:57]} Qc5 {[%emt 0:11:18]} 15. Qxc5 {[%emt 0:14:33]} bxc5 {[%emt 0:00:05]} 16. Rd1 {[%emt 0:00:11]} Re7 {[%emt 0:01:09]} 17. h4 {[%emt 0:17:25]} h5 {[%emt 0:01:56]} 18. Be3 {[%emt 0:02:39]} d6 {[%emt 0:00:08]} 19. a5 {[%emt 0:00:25]} f6 {[%emt 0:02:37]} 20. Bf2 {[%emt 0:03:05]} Be6 {[%emt 0:01:22]} 21. a6 {[%emt 0:03:48]} bxa6 {[%emt 0:00:10]} 22. Bxa6 {[%emt 0:00:10]} Ree8 {[%emt 0:06:42]} 23. Bb7 {[%emt 0:04:45]} Rxa1 {[%emt 0:03:36]} 1/2-1/2

[Event "Summer Prague Open-A 2024"]
[Site "Prague"]
[Date "2024.08.06"]
[Round "6.18"]
[White "Pujari, Rucha"]
[Black "Galymbek, Alikhan"]
[Result "1/2-1/2"]
[Annotator "RC"]
[ECO "D70"]
[WhiteElo "2175"]
[BlackElo "1970"]
[PlyCount "107"]
[EventDate "2024.08.02"]
[EventType "swiss"]
[EventCountry "CZE"]
[SourceTitle "playchess.com"]
[Source "ChessBase"]
[SourceQuality "1"]
[TimeControl "40/5400+30:1800+30"]

1. d4 {[%emt 0:01:02]} Nf6 {[%emt 0:08:40]} 2. c4 {[%emt 0:00:18]} g6 {[%emt 0:00:08]} 3. Nf3 {[%emt 0:00:27]} Bg7 {[%emt 0:00:18]} 4. g3 {[%emt 0:00:33]} b6 {[%emt 0:00:08]} 5. Bg2 {[%emt 0:01:19]} Bb7 {[%emt 0:00:06]} 6. O-O {[%emt 0:00:50]} O-O {[%emt 0:00:12]} 7. d5 {[%emt 0:09:06]} c6 {[%emt 0:04:29]} 8. Nc3 {[%emt 0:01:31]} cxd5 {[%emt 0:01:22]} 9. cxd5 {[%emt 0:00:20]} Na6 {[%emt 0:00:20]} 10. e4 {[%emt 0:02:46]} e6 {[%emt 0:11:42]} 11. Bg5 {[%emt 0:13:01]} h6 {[%emt 0:00:07]} 12. Bf4 {[%emt 0:01:06]} exd5 {[%emt 0:06:12]} 13. e5 {[%emt 0:06:45]} Nh5 {[%emt 0:12:33]} 14. Be3 {[%emt 0:06:29]} d6 {[%emt 0:03:02]} 15. exd6 {[%emt 0:20:41]} Qxd6 {[%emt 0:01:07]} 16. Qd2 {[%emt 0:00:08]} Kh7 {[%emt 0:01:46]} 17. Rfd1 {[%emt 0:00:25]} Nc7 {[%emt 0:01:16]} 18. Rac1 {[%emt 0:05:30]} Qd7 {[%emt 0:05:54]} 19. h3 {[%emt 0:05:13]} Rad8 {[%emt 0:02:44]} 20. g4 {[%emt 0:02:41]} Nf6 {[%emt 0:02:01]} 21. a4 {[%emt 0:08:07]} Ne6 {[%emt 0:02:28]} 22. Nb5 {[%emt 0:00:53]} Ne4 {[%emt 0:01:19]} 23. Qb4 {[%emt 0:00:36]} Ba6 {[%emt 0:04:51]} 24. Nfd4 {[%emt 0:03:37]} Bxb5 {[%emt 0:15:19]} 25. axb5 {[%emt 0:02:19]} Bxd4 {[%emt 0:01:58]} 26. Bxd4 {[%emt 0:00:11]} Nf4 {[%emt 0:02:16]} 27. Rc6 {[%emt 0:01:04]} Rc8 {[%emt 0:01:12]} 28. Be3 {[%emt 0:02:58]} Nxg2 {[%emt 0:01:35]} 29. Kxg2 {[%emt 0:00:02]} Rfe8 {[%emt 0:00:52]} 30. Rxc8 {[%emt 0:03:09]} Qxc8 {[%emt 0:00:01]} 31. Qd4 {[%emt 0:00:37]} Rd8 {[%emt 0:05:09]} 32. Rc1 {[%emt 0:00:03]} Qd7 {[%emt 0:00:20]} 33. Rc6 {[%emt 0:00:13]} Qe7 {[%emt 0:02:06]} 34. b3 {[%emt 0:02:50]} Nc5 {[%emt 0:01:17]} 35. b4 {[%emt 0:00:33]} Ne6 {[%emt 0:00:44]} 36. Qd2 {[%emt 0:00:32]} d4 {[%emt 0:00:33]} 37. Bf4 {[%emt 0:00:26]} Nxf4+ {[%emt 0:00:16]} 38. Qxf4 {[%emt 0:00:02]} d3 {[%emt 0:00:30]} 39. Rc1 {[%emt 0:00:54]} Kg8 {[%emt 0:01:59]} 40. Rd1 {[%emt 0:00:28]} Qd7 {[%emt 0:00:26]} 41. Qxh6 {[%emt 0:03:21]} Qd5+ {[%emt 0:03:54]} 42. f3 {[%emt 0:01:46]} Qxb5 {[%emt 0:00:18]} 43. Qf4 {[%emt 0:00:21]} a5 {[%emt 0:02:45]} 44. bxa5 {[%emt 0:00:33]} bxa5 {[%emt 0:00:01]} 45. h4 {[%emt 0:00:54]} a4 {[%emt 0:10:17]} 46. h5 {[%emt 0:01:25]} a3 {[%emt 0:00:56]} 47. hxg6 {[%emt 0:15:39]} fxg6 {[%emt 0:00:07]} 48. Qe4 {[%emt 0:00:59]} Qa6 {[%emt 0:07:12]} 49. Rxd3 {[%emt 0:01:54]} Qxd3 {[%emt 0:05:54]} 50. Qe6+ {[%emt 0:00:11]} Kg7 {[%emt 0:00:04]} 51. Qe7+ {[%emt 0:00:16]} Kh8 {[%emt 0:00:05]} 52. Qf6+ {[%emt 0:02:05]} Kh7 {[%emt 0:00:07]} 53. Qe7+ {[%emt 0:00:22]} Kh6 {[%emt 0:00:16]} 54. Qh4+ {[%emt 0:00:41]} 1/2-1/2

[Event "Summer Prague Open-A 2024"]
[Site "Prague"]
[Date "2024.08.06"]
[Round "6.19"]
[White "Zvolensky, David"]
[Black "Radovic, Stefan"]
[Result "1-0"]
[Annotator "NA RC"]
[ECO "D31"]
[WhiteElo "2167"]
[BlackElo "1967"]
[PlyCount "81"]
[EventDate "2024.08.02"]
[EventType "swiss"]
[EventCountry "CZE"]
[SourceTitle "playchess.com"]
[Source "ChessBase"]
[SourceQuality "1"]
[TimeControl "40/5400+30:1800+30"]

1. d4 {[%emt 0:00:03]} d5 {[%emt 0:00:07]} 2. c4 {[%emt 0:00:04]} e6 {[%emt 0:00:05]} 3. Nc3 {[%emt 0:00:04]} Bb4 {[%emt 0:00:08]} 4. a3 {[%emt 0:00:15]} Bxc3+ {[%emt 0:00:45]} 5. bxc3 {[%emt 0:00:01]} Nf6 {[%emt 0:01:09]} 6. e3 {[%emt 0:00:07]} O-O {[%emt 0:05:26]} 7. cxd5 {[%emt 0:00:10]} exd5 {[%emt 0:00:39]} 8. Bd3 {[%emt 0:00:07]} b6 {[%emt 0:02:37]} 9. Ne2 {[%emt 0:00:13]} c5 {[%emt 0:02:38]} 10. O-O {[%emt 0:00:25]} Re8 {[%emt 0:05:25]} 11. f3 {[%emt 0:01:33]} Ba6 {[%emt 0:05:18]} 12. Bxa6 {[%emt 0:01:09]} Nxa6 {[%emt 0:00:07]} 13. Qd3 {[%emt 0:00:02]} Nc7 {[%emt 0:06:17]} 14. Ng3 {[%emt 0:00:59]} cxd4 {[%emt 0:08:33]} 15. cxd4 {[%emt 0:01:06]} Ne6 {[%emt 0:01:04]} 16. Bb2 {[%emt 0:00:30]} b5 {[%emt 0:16:24]} 17. e4 {[%emt 0:19:05]} Nf4 {[%emt 0:02:38]} 18. Qd2 {[%emt 0:00:38]} N6h5 {[%emt 0:03:15]} 19. Nxh5 {[%emt 0:05:34]} Nxh5 {[%emt 0:00:05]} 20. e5 {[%emt 0:00:11]} g6 {[%emt 0:10:32]} 21. Rac1 {[%emt 0:04:30]} Qb6 {[%emt 0:01:50]} 22. f4 {[%emt 0:07:58]} Rac8 {[%emt 0:04:36]} 23. f5 {[%emt 0:01:25]} Ng7 {[%emt 0:06:14]} 24. fxg6 {[%emt 0:14:03]} hxg6 {[%emt 0:00:38]} 25. Qf2 {[%emt 0:00:36]} Qe6 {[%emt 0:01:27]} 26. Rcd1 {[%emt 0:03:38]} Qf5 {[%emt 0:10:09]} 27. Qe3 {[%emt 0:04:25]} Qh5 {[%emt 0:00:27]} 28. Qb3 {[%emt 0:02:16]} Rc4 {[%emt 0:01:29]} 29. Qxb5 {[%emt 0:07:16]} Rc2 {[%emt 0:00:17]} 30. Qxd5 {[%emt 0:00:09]} Nf5 {[%emt 0:01:20]} 31. Bc1 {[%emt 0:01:28]} Rec8 {[%emt 0:02:55]} 32. e6 {[%emt 0:02:26]} fxe6 {[%emt 0:01:17]} 33. Qxe6+ {[%emt 0:00:10]} Kg7 {[%emt 0:00:23]} 34. Qd7+ {[%emt 0:01:53]} Kh8 {[%emt 0:00:43]} 35. Bf4 {[%emt 0:05:13]} Rxg2+ {[%emt 0:00:21]} 36. Kh1 {[%emt 0:00:08]} Rxh2+ {[%emt 0:00:16]} 37. Bxh2 {[%emt 0:00:02]} Ng3+ {[%emt 0:00:16]} 38. Kg1 {[%emt 0:00:50]} Ne2+ {[%emt 0:00:19]} 39. Kg2 {[%emt 0:01:04]} Qg5+ {[%emt 0:01:13]} 40. Kh1 {[%emt 0:02:10]} Ng3+ {[%emt 0:00:32]} 41. Bxg3 {[%emt 0:30:01]} 1-0

[Event "Summer Prague Open-A 2024"]
[Site "Prague"]
[Date "2024.08.06"]
[Round "6.20"]
[White "Moritani, Sho"]
[Black "Maj, Pawel"]
[Result "0-1"]
[Annotator "NA RC"]
[ECO "B50"]
[WhiteElo "2031"]
[BlackElo "2158"]
[PlyCount "88"]
[EventDate "2024.08.02"]
[EventType "swiss"]
[EventCountry "CZE"]
[SourceTitle "playchess.com"]
[Source "ChessBase"]
[SourceQuality "1"]
[TimeControl "40/5400+30:1800+30"]

1. e4 {[%emt 0:00:05]} c5 {[%emt 0:00:06]} 2. Nf3 {[%emt 0:00:05]} d6 {[%emt 0:00:05]} 3. Bc4 {[%emt 0:00:09]} Nf6 {[%emt 0:00:23]} 4. d3 {[%emt 0:00:11]} g6 {[%emt 0:00:22]} 5. O-O {[%emt 0:00:26]} Bg7 {[%emt 0:00:06]} 6. c3 {[%emt 0:00:17]} O-O {[%emt 0:00:34]} 7. Bb3 {[%emt 0:00:23]} Nc6 {[%emt 0:00:42]} 8. h3 {[%emt 0:00:15]} e5 {[%emt 0:05:15]} 9. Be3 {[%emt 0:24:09]} b6 {[%emt 0:14:29]} 10. Nbd2 {[%emt 0:21:57]} Bb7 {[%emt 0:14:32]} 11. d4 {[%emt 0:08:52]} exd4 {[%emt 0:02:45]} 12. cxd4 {[%emt 0:02:50]} Re8 {[%emt 0:05:46]} 13. d5 {[%emt 0:10:13]} Nb4 {[%emt 0:07:32]} 14. a3 {[%emt 0:01:17]} Nd3 {[%emt 0:06:04]} 15. Qc2 {[%emt 0:03:23]} Ba6 {[%emt 0:02:38]} 16. Bc4 {[%emt 0:01:20]} Bxc4 {[%emt 0:00:07]} 17. Nxc4 {[%emt 0:00:08]} b5 {[%emt 0:00:26]} 18. Nxd6 {[%emt 0:02:33]} Qxd6 {[%emt 0:00:12]} 19. Qxd3 {[%emt 0:00:10]} c4 {[%emt 0:01:02]} 20. Qc2 {[%emt 0:01:50]} Nxe4 {[%emt 0:02:52]} 21. Rad1 {[%emt 0:01:59]} Ng3 {[%emt 0:02:01]} 22. Rfe1 {[%emt 0:02:08]} Nf5 {[%emt 0:00:07]} 23. Qc1 {[%emt 0:02:51]} Nxe3 {[%emt 0:00:55]} 24. fxe3 {[%emt 0:00:15]} Qc5 {[%emt 0:04:07]} 25. Kh1 {[%emt 0:00:46]} Bh6 {[%emt 0:02:03]} 26. Qc3 {[%emt 0:01:27]} Bg7 {[%emt 0:07:58]} 27. Qc1 {[%emt 0:01:13]} Re4 {[%emt 0:04:33]} 28. Qd2 {[%emt 0:04:25]} Rd8 {[%emt 0:00:50]} 29. Rf1 {[%emt 0:00:30]} Qxe3 {[%emt 0:01:32]} 30. Qa5 {[%emt 0:01:06]} Qb6 {[%emt 0:00:30]} 31. Qd2 {[%emt 0:01:12]} h6 {[%emt 0:00:44]} 32. Qc2 {[%emt 0:01:25]} Re3 {[%emt 0:00:23]} 33. Qf2 {[%emt 0:01:26]} Rd3 {[%emt 0:00:32]} 34. Qh4 {[%emt 0:01:53]} R8xd5 {[%emt 0:00:53]} 35. Rde1 {[%emt 0:00:12]} Qd8 {[%emt 0:02:47]} 36. Qf4 {[%emt 0:00:37]} Rf5 {[%emt 0:00:56]} 37. Qe4 {[%emt 0:00:42]} Bxb2 {[%emt 0:00:33]} 38. Qc6 {[%emt 0:01:26]} Qf6 {[%emt 0:02:07]} 39. Re8+ {[%emt 0:00:57]} Kh7 {[%emt 0:00:11]} 40. Qc8 {[%emt 0:00:57]} Rfxf3 {[%emt 0:03:22]} 41. gxf3 {[%emt 0:30:31]} Rxf3 {[%emt 0:30:07]} 42. Rd1 {[%emt 0:01:14]} Rf1+ {[%emt 0:00:14]} 43. Rxf1 {[%emt 0:00:21]} Qxf1+ {[%emt 0:00:05]} 44. Kh2 {[%emt 0:00:04]} Be5+ {[%emt 0:00:08]} 0-1

[Event "Summer Prague Open-A 2024"]
[Site "Prague"]
[Date "2024.08.06"]
[Round "6.21"]
[White "Pahud, Cedric"]
[Black "Alimbetov, Dias"]
[Result "1-0"]
[Annotator "RC"]
[ECO "A06"]
[WhiteElo "2152"]
[BlackElo "1887"]
[PlyCount "85"]
[EventDate "2024.08.02"]
[EventType "swiss"]
[EventCountry "CZE"]
[SourceTitle "playchess.com"]
[Source "ChessBase"]
[SourceQuality "1"]
[TimeControl "40/5400+30:1800+30"]

1. Nf3 {[%emt 0:00:03]} d5 {[%emt 0:07:34]} 2. c4 {[%emt 0:00:11]} c6 {[%emt 0:00:09]} 3. e3 {[%emt 0:00:14]} Nf6 {[%emt 0:02:00]} 4. d4 {[%emt 0:00:15]} Bg4 {[%emt 0:05:17]} 5. h3 {[%emt 0:00:22]} Bh5 {[%emt 0:00:32]} 6. g4 {[%emt 0:02:53]} Bg6 {[%emt 0:01:14]} 7. Ne5 {[%emt 0:00:03]} e6 {[%emt 0:09:11]} 8. Nxg6 {[%emt 0:07:11]} hxg6 {[%emt 0:00:05]} 9. Bg2 {[%emt 0:00:07]} Nbd7 {[%emt 0:05:37]} 10. Nd2 {[%emt 0:05:18]} Bb4 {[%emt 0:09:29]} 11. a3 {[%emt 0:02:41]} Bxd2+ {[%emt 0:02:47]} 12. Bxd2 {[%emt 0:00:28]} dxc4 {[%emt 0:02:05]} 13. Qc2 {[%emt 0:06:01]} Nb6 {[%emt 0:01:25]} 14. Ba5 {[%emt 0:01:01]} Nfd7 {[%emt 0:03:21]} 15. O-O-O {[%emt 0:08:35]} Qg5 {[%emt 0:00:34]} 16. Bxb6 {[%emt 0:01:24]} Nxb6 {[%emt 0:00:42]} 17. f4 {[%emt 0:04:32]} Qb5 {[%emt 0:04:24]} 18. Bf1 {[%emt 0:14:59]} O-O-O {[%emt 0:03:22]} 19. h4 {[%emt 0:02:47]} c5 {[%emt 0:04:41]} 20. Be2 {[%emt 0:04:52]} cxd4 {[%emt 0:01:44]} 21. exd4 {[%emt 0:01:08]} Kb8 {[%emt 0:01:29]} 22. Kb1 {[%emt 0:01:03]} Rd6 {[%emt 0:02:38]} 23. h5 {[%emt 0:01:19]} g5 {[%emt 0:05:23]} 24. fxg5 {[%emt 0:03:54]} Qxg5 {[%emt 0:00:06]} 25. Rhf1 {[%emt 0:05:33]} f6 {[%emt 0:02:04]} 26. Qe4 {[%emt 0:03:48]} Rhd8 {[%emt 0:02:06]} 27. Rc1 {[%emt 0:03:22]} Rxd4 {[%emt 0:05:33]} 28. Qxe6 {[%emt 0:00:30]} Qb5 {[%emt 0:00:21]} 29. Rc2 {[%emt 0:06:46]} Rc8 {[%emt 0:09:54]} 30. h6 {[%emt 0:04:52]} gxh6 {[%emt 0:01:12]} 31. Qxf6 {[%emt 0:00:03]} Qd5 {[%emt 0:01:29]} 32. Rf5 {[%emt 0:06:18]} Qe4 {[%emt 0:02:14]} 33. Bf3 {[%emt 0:01:16]} Qd3 {[%emt 0:00:37]} 34. Qe5+ {[%emt 0:02:22]} Ka8 {[%emt 0:02:37]} 35. Rf7 {[%emt 0:00:28]} Rd7 {[%emt 0:01:39]} 36. Be4 {[%emt 0:00:50]} Qd1+ {[%emt 0:01:06]} 37. Rc1 {[%emt 0:00:01]} Qxc1+ {[%emt 0:00:47]} 38. Kxc1 {[%emt 0:00:01]} Rxf7 {[%emt 0:00:01]} 39. Qe6 {[%emt 0:00:36]} Rg7 {[%emt 0:01:21]} 40. Qf6 {[%emt 0:01:42]} Rg5 {[%emt 0:00:59]} 41. Bf5 {[%emt 0:30:17]} Rcg8 {[%emt 0:30:25]} 42. Qxh6 {[%emt 0:00:47]} Kb8 {[%emt 0:00:00]} 43. Be6 {[%emt 0:00:00]} 1-0